Cogmind - Beta 16.1 @@@ ROGUE MODE // 2026.04.23 @ 22:48:04 Player: unq Result: Self-destructed Performance ------------- Evolutions (4) 2000 Regions Visited (5) 1000 Robots Destroyed (40) 200 Value Destroyed (1230) 1230 Prototype IDs (33) 660 Alien Tech Used (0) 0 Bonus (300) 300 TOTAL SCORE: 5390 Bonus ------- Registered with UFD 300 Cogmind --------- Core Integrity 38/850 Matter 300/300 Energy 290/290 System Corruption 3% Temperature Cool (0) Movement Hovering (56) Location -6/Factory Parts ------- > --- POWER (2) -------- Improved Deuterium Engine > --- PROPULSION (5) --- Improved Gravmag System Improved Gravmag System > --- UTILITY (5) ------ Coolant Injector Advanced Signal Interpreter Improved Targeting Computer Improved Core Shielding > --- WEAPON (3) ------- (None) > --- INVENTORY (5) ---- Experimental Signal Interpreter Improved Trap Extractor (0/6) Heavy Plasma Cannon Mini Grenade Launcher CPS Tube (2) Peak State ------------ > --- POWER ------------ Enhanced Nuclear Core Meta Core > --- PROPULSION ------- Armored Wheel Armored Huge Wheel Armored Huge Wheel Nuclear Pulse Thruster > --- UTILITY ---------- Large Storage Unit Improved Sensor Array Advanced Signal Interpreter Improved Targeting Computer Layered Light Armor Plating Hacking Suite > --- WEAPON ----------- Heavy Plasma Cannon Heavy Flak Cannon Junk Cannon > --- INVENTORY -------- Enhanced Nuclear Core High-capacity Matter Pod Experimental Signal Interpreter ECM Suite Hardened Light Armor Plating Thermal Shield Improved Trap Extractor Heavy Laser Minigun Minigun Mini Grenade Launcher CPS Tube CPS Tube Maul DRS Beacon [Rating: 86] Favorites ----------- Power Meta Core Engine Light Ion Engine Power Core Meta Core Propulsion Light Treads Treads Light Treads Wheel Armored Huge Wheel Hover Unit Combat Airjet Flight Unit Nuclear Pulse Thruster Utility Large Storage Unit Device Seismic Detector Storage Large Storage Unit Processor Improved Targeting Computer Hackware Hacking Suite Protection Layered Light Armor Plating Weapon Heavy Flail Energy Gun Subdweller Laser Energy Cannon Subdweller Beam Cannon Ballistic Gun Subdweller Machine Gun Ballistic Cannon Battle Cannon Launcher Mini Grenade Launcher Special Weapon Junk Cannon Impact Weapon Heavy Flail Slashing Weapon Chainsword Build | -11 -10 -10 -8 -8 -6 ------- Run | Yrd Mat Sub Rec Scr Fac Slots Evolved 8 | . . . . . 8 Power 1 | . . . . . 1 Propulsion 3 | . . . . . 3 Utility 3 | . . . . . 3 Weapon 1 | . . . . . 1 Parts Attached 76 | 7 1 25 5 11 27 Power 8 | 1 . 3 . . 4 Engine 6 | 1 . 2 . . 3 Core 2 | . . 1 . . 1 Reactor . | . . . . . . Propulsion 19 | 2 . 7 2 3 5 Treads 5 | 2 . . 2 1 . Leg . | . . . . . . Wheel 10 | . . 7 . 2 1 Hover 3 | . . . . . 3 Flight 1 | . . . . . 1 Utility 25 | 2 1 5 2 4 11 Device 11 | 1 . 4 . 1 5 Storage 4 | 1 1 . . 1 1 Processor 3 | . . 1 . . 2 Hackware 1 | . . . 1 . . Protection 6 | . . . 1 2 3 Artifact . | . . . . . . Weapon 24 | 2 . 10 1 4 7 Energy Gun 2 | . . 1 . . 1 Energy Cannon 4 | . . 3 . 1 . Ballistic Gun 8 | 2 . 4 . . 2 Ballistic Cannon 2 | . . 1 . . 1 Launcher 1 | . . . . 1 . Special Weapon 3 | . . 1 . 1 1 Impact Weapon 2 | . . . 1 1 . Slashing Weapon 2 | . . . . . 2 Piercing Weapon . | . . . . . . Special Melee Weapon . | . . . . . . Unidentified Prototypes 2 | . . . . 1 1 Parts Lost 26 | . . 5 . . 21 Power 3 | . . . . . 3 Propulsion 7 | . . 3 . . 4 Utility 7 | . . . . . 7 Weapon 9 | . . 2 . . 7 Highest Loss Streak 6 | . . 2 . . 6 To Critical Strikes . | . . . . . . Average Backups 12 | 1 5 12 14 13 9 Power . | . . 1 2 . . Propulsion . | . . . 1 . . Utility 5 | . 2 5 6 6 3 Weapon 4 | 1 3 5 4 4 3 Tool/Special . | . . . . . . Unused Backups 29 | . . 8 3 11 7 Power 2 | . . . . 1 1 Propulsion 1 | . . . 1 . . Utility 18 | . . 5 1 8 4 Weapon 7 | . . 3 1 2 1 Tool/Special 1 | . . . . . 1 Average Slot Usage (%) 79 | . 100 93 79 74 64 Engine 3 | . 14 11 . . 1 Core 7 | . . 1 10 10 6 Treads 8 | . 28 13 14 5 . Wheel 10 | . . 12 5 10 8 Device 8 | . 14 13 9 5 4 Storage 10 | . 14 13 10 10 3 Processor 1 | . . . . . 11 Hackware 6 | . . . 9 10 3 Protection 2 | . . . . 4 6 Energy Cannon 3 | . . 10 . . . Ballistic Gun 4 | . 28 13 1 . 1 Ballistic Cannon 4 | . . . 10 5 2 Special Weapon 1 | . . . 1 2 3 Impact Weapon 5 | . . . 7 9 . Peak Build Rating 86 | 7 7 26 30 50 86 Average Rating 31 | 5 7 14 27 37 58 On Entrance 19 | . 7 7 26 27 50 Avg Prop Armor Cover (%) 9 | . . 11 4 11 2 Naked Turns . | . . . . . . Heaviest Build 71 | 13 28 39 40 47 71 Greatest Support 68 | 40 40 40 40 40 68 Greatest Overweight (x) 5 | . . 3 1 1 5 Average Overweight (x) . | . . 1 . . . Largest Inventory Capacity 15 | 8 15 15 15 15 15 Average Capacity 14 | 7 9 15 15 15 11 Most Carried 15 | 5 7 15 15 15 15 Average Carried 13 | 1 5 14 14 14 10 Final Capacity 15 | 8 15 15 15 15 15 Final Carried 15 | 5 7 15 15 15 15 Class Distribution -------------------- 84% | Mutant 9% | Scavenger-Mutant 4% | Skirmisher Dominant Class ---------------- Mutant | -10/Materials Mutant | -10/Subcaves Mutant | -8/Recycling Mutant | -8/Scraptown Mutant | -6/Factory Resources | -11 -10 -10 -8 -8 -6 ----------- Run | Yrd Mat Sub Rec Scr Fac Matter Collected 2189 | 324 . 743 107 340 675 Remotely . | . . . . . . Salvage Created 1643 | 130 . 406 279 . 828 Parts 72 | 11 . 29 7 . 25 Haulers Intercepted 1 | . . . . . 1 Recyclers Shooed 1 | . . . 1 . . Parts Field Recycled . | . . . . . . Retrieved Matter . | . . . . . . Parts Self-Destructed 19 | . . 19 . . . Prevented . | . . . . . . Parts Restored . | . . . . . . Kills | -11 -10 -10 -8 -8 -6 ------- Run | Yrd Mat Sub Rec Scr Fac Combat Hostiles Destroyed 27 | . . 12 1 . 14 Melee 2 | . . . . . 2 Guns 7 | . . 7 . . . Cannons 12 | . . 5 1 . 6 AOE 1 | . . . . . 1 Classes Destroyed 10 | 2 . 3 1 . 4 Builder 1 | . . . . . 1 Tunneler 3 | 3 . . . . . Hauler 1 | . . . . . 1 Recycler 6 | 1 . . 3 . 2 Turret 2 | . . 2 . . . Swarmer 7 | . . 3 . . 4 Grunt 5 | . . . . . 5 Sentry 4 | . . . 1 . 3 Programmer 2 | . . . . . 2 Subdweller 9 | . . 9 . . . Best Kill Streak 3 | 3 . 3 1 . 3 Combat Bots Only 3 | . . 3 1 . 3 Max Kills in Single Turn 2 | 2 . 1 1 . 1 Gunslinging . | . . . . . . Exploded 1 | . . . . . 1 Melee 1 | . . . . . 1 Uniques/NPCs Destroyed . | . . . . . . Combat | -11 -10 -10 -8 -8 -6 -------- Run | Yrd Mat Sub Rec Scr Fac Hostile Shots Fired 486 | . . 88 . . 398 Missed 169 | . . 24 . . 145 Hits 317 | . . 64 . . 253 Projectile 317 | . . 64 . . 253 Critical Strikes 3 | . . . . . 3 Part Disruptions 1 | . . . . . 1 Damage Taken 4389 | . . 961 . . 3428 Core 1008 | . . 196 . . 812 Absorbed by Shields . | . . . . . . Redirected to Shielding 121 | . . . . . 121 Core Remaining (%) 60 | 100 . . . 21 . Volleys Fired 126 | 9 . 63 4 . 50 Largest 3 | 2 . 2 2 . 3 Hottest 134 | 40 . 110 100 . 134 Shots Fired 234 | 18 . 105 5 . 106 Gun 111 | 18 . 59 1 . 33 Cannon 98 | . . 44 1 . 53 Launcher . | . . . . . . Special 25 | . . 2 3 . 20 Kinetic 133 | 18 . 52 2 . 61 Thermal 67 | . . 53 3 . 11 Explosive . | . . . . . . Electromagnetic 14 | . . . . . 14 Impact 20 | . . . . . 20 Robot Hit Streak 17 | 4 . 17 9 . 10 Robot Miss Streak 15 | 5 . 3 . . 15 Penetration Max . | . . . . . . Secondary Targets . | . . . . . . Shots Hit Robots 168 | 9 . 59 6 . 94 Core Hits 85 | 5 . 20 1 . 59 Critical Kills 1 | . . . . . 1 Critical Parts Destroyed 4 | . . . 1 . 3 Critical Strikes 7 | . . . 1 . 6 Smash 5 | . . . 1 . 4 Sever 2 | . . . . . 2 Melee Attacks 41 | . . . 10 . 31 Impact 14 | . . . 10 . 4 Slashing 27 | . . . . . 27 Piercing . | . . . . . . Sneak Attacks 6 | . . . 4 . 2 Combat Hostiles . | . . . . . . Follow-up Attacks . | . . . . . . Damage Inflicted 5194 | 135 . 1270 534 . 3255 Guns 1305 | 135 . 731 18 . 421 Cannons 1661 | . . 539 27 . 1095 Explosions 134 | . . . . . 134 Melee 1112 | . . . 489 . 623 Ramming . | . . . . . . Kinetic 1923 | 135 . 665 45 . 1078 Thermal 989 | . . 605 . . 384 Explosive . | . . . . . . Electromagnetic 188 | . . . . . 188 Impact 1471 | . . . 489 . 982 Slashing 623 | . . . . . 623 Piercing . | . . . . . . Highest Corruption 3 | . . . . . 3 Average Corruption 2 | . . . . . 2 Corruption Purged . | . . . . . . Corruption Blocked . | . . . . . . Effects 1 | . . . . . 1 Energy Discharges 1 | . . . . . 1 Overload Shots . | . . . . . . Overflow Damage 884 | . . . 389 . 495 Projectiles 453 | . . . . . 453 Explosions 4 | . . . . . 4 Melee 427 | . . . 389 . 38 Knockbacks 24 | . . . 3 . 21 Impact 6 | . . . 3 . 3 Kinetic 15 | . . . . . 15 Secondary 3 | . . . . . 3 Self-Inflicted Damage 43 | . . . . . 43 Shots 1 | . . . . . 1 Rammed . | . . . . . . Targets Rammed . | . . . . . . Kicked . | . . . . . . Crushed . | . . . . . . Highest Temperature 402 | . . 2 60 . 402 Average Temperature 131 | . . 2 27 . 143 Received Heat Transfer 792 | . . 99 . . 693 Effects 7 | . . . . . 7 Shutdowns 2 | . . . . . 2 Interference 4 | . . . . . 4 Short Circuit 1 | . . . . . 1 Siege Activations . | . . . . . . Martial Activations . | . . . . . . Shielding Activations . | . . . . . . Robots Disrupted . | . . . . . . Combat Hostiles . | . . . . . . Robots Corrupted 7 | . . . 2 . 5 Combat Hostiles 5 | . . . . . 5 Parts Fried 4 | . . . 2 . 2 Impact Corruptions 20 | . . . 8 . 12 Robots Melted . | . . . . . . Combat Hostiles . | . . . . . . Parts Melted 3 | . . 2 . . 1 Heat Transferred 1365 | . . 815 . . 550 Parts Sabotaged . | . . . . . . Parts Stolen . | . . . . . . Parts Stripped . | . . . . . . Power Chain Reactions 1 | . . . . . 1 Alert | -11 -10 -10 -8 -8 -6 ------- Run | Yrd Mat Sub Rec Scr Fac Maximum Alert Level . | . . . . . . Low Security (%) 100 | 100 100 . 100 . 100 Level 1 . | . . . . . . Level 2 . | . . . . . . Level 3 . | . . . . . . Level 4 . | . . . . . . Level 5 . | . . . . . . High Security . | . . . . . . Max Security . | . . . . . . Peak Influence 108 | 10 . . 33 . 108 Initial . | . . . . . . Average 20 | . . . 4 . 44 Influence Increases 952 | 20 . 155 196 . 581 Destroy 0b10 Robot/C 400 | . . 100 20 . 280 Destroy 0b10 Robot/NC 55 | 20 . . 15 . 20 Destroy Leader 82 | . . 10 . . 72 Trap Triggered on 0b10 10 | . . . . . 10 Successful Hack 38 | . . . 34 . 4 Select Force Hacks 120 | . . . 120 . . Disable Machine 15 | . . . . . 15 Destroy Structure 22 | . . . 7 . 15 Partial Spotted 15 | . . . . . 15 Lose Combat Pursuer 195 | . . 45 . . 150 Influence Decreases 946 | 20 . 155 196 . 575 Time Decay 721 | 20 . 145 191 . 365 Lost Part 220 | . . 10 . . 210 Purge Threat 5 | . . . 5 . . Squads Dispatched 8 | . . . . . 8 Investigation 1 | . . . . . 1 Extermination 2 | . . . . . 2 Reinforcement 2 | . . . . . 2 Assault . | . . . . . . Garrison 3 | . . . . . 3 Intercept . | . . . . . . Searches Triggered . | . . . . . . Construction Impeded 1 | . . . . . 1 Haulers Reinforced . | . . . . . . Active Scanning Responses . | . . . . . . Cargo Convoy Interrupts . | . . . . . . Stealth | -11 -10 -10 -8 -8 -6 --------- Run | Yrd Mat Sub Rec Scr Fac Distress Signals 2 | . . . 1 . 1 Communications Jammed . | . . . . . . Distress Signals . | . . . . . . Times Spotted 44 | . . 15 1 . 28 Peak Tracking Total 5 | . . 3 1 . 5 Tactical Retreats 7 | . . 1 . . 6 Traps | -11 -10 -10 -8 -8 -6 ------- Run | Yrd Mat Sub Rec Scr Fac Traps Triggered 3 | . . 3 . . . Indirectly . | . . . . . . Trap Hack Attempts . | . . . . . . Triggered . | . . . . . . Disarmed . | . . . . . . Reprogrammed . | . . . . . . Reused 1 | . . . . . 1 Traps Extracted . | . . . . . . Installed 2 | . . . . . 2 Triggered 1 | . . . . . 1 Most Traps Carried 2 | . . 1 . 2 2 Machines | -11 -10 -10 -8 -8 -6 ---------- Run | Yrd Mat Sub Rec Scr Fac Machines Disabled 2 | . . 1 . . 1 Max in Single Turn 1 | . . 1 . . 1 Machines Repaired . | . . . . . . Machines Dismantled . | . . . . . . Machines Sabotaged . | . . . . . . Overloaded Fab Kills . | . . . . . . Hacking | -11 -10 -10 -8 -8 -6 --------- Run | Yrd Mat Sub Rec Scr Fac Machines Accessed 21 | . . 1 10 5 5 Terminals 7 | . . . 6 . 1 Fabricators 1 | . . . . . 1 Repair Stations 1 | . . . . . 1 Recycling Units 5 | . . . 4 . 1 Scanalyzers 1 | . . . . . 1 Garrison Access . | . . . . . . Total Hacks 70 | . . 9 32 16 13 Successful 50 | . . 9 19 16 6 Failed 20 | . . . 13 . 7 Catastrophic 2 | . . . 1 . 1 Database Lockouts . | . . . . . . Manual 17 | . . . 16 . 1 Terminals 26 | . . . 23 . 3 Fabricators 1 | . . . . . 1 Repair Stations 1 | . . . . . 1 Recycling Units 11 | . . . 9 . 2 Scanalyzers 6 | . . . . . 6 Garrison Access . | . . . . . . Terminal Hacks 38 | . . 9 12 16 1 Record 23 | . . 8 . 15 . Part Schematic 2 | . . . 2 . . Robot Analysis 1 | . . . 1 . . Prototype ID Bank 2 | . . . 2 . . Branch Access Points 1 | . . . 1 . . Recycling Unit Index 1 | . . . 1 . . Unreport Threat 2 | . . . 2 . . Surveillance Status 1 | . . . 1 . . Transport Status 1 | . . . 1 . . Hauler Manifests 1 | . . . . . 1 Zone Layout 1 | . . . 1 . . Proto ID Catalog 2 | . . 1 . 1 . Fabricator Hacks . | . . . . . . Repair Station Hacks . | . . . . . . Recycling Unit Hacks 2 | . . . 2 . . Retrieve Components 2 | . . . 2 . . Scanalyzer 4 | . . . . . 4 Insert Component 1 | . . . . . 1 Analyze 3 | . . . . . 3 Garrison Access Hacks . | . . . . . . Unauthorized Hacks 6 | . . . 5 . 1 Terminals 2 | . . . 1 . 1 Botnet 2 | . . . 1 . 1 Fabricators . | . . . . . . Repair Stations . | . . . . . . Recycling Units 4 | . . . 4 . . Tunnel 4 | . . . 4 . . Scanalyzers . | . . . . . . Garrison Access . | . . . . . . Data Cores Recovered . | . . . . . . Used . | . . . . . . Hacking Detections 11 | . . . 6 . 5 Full Trace Events 1 | . . . . . 1 Feedback Events . | . . . . . . Feedback Blocked . | . . . . . . Robot Schematics Acquired . | . . . . . . Robots Built . | . . . . . . Authchips . | . . . . . . Time . | . . . . . . Total Robot Build Rating . | . . . . . . Part Schematics Acquired 2 | . . . 2 . . Parts Built . | . . . . . . Authchips . | . . . . . . Time . | . . . . . . Total Part Build Rating . | . . . . . . Part Studies Acquired . | . . . . . . Parts Repaired . | . . . . . . Time . | . . . . . . Parts Recycled . | . . . . . . Recycled Matter . | . . . . . . Retrieved Matter . | . . . . . . Retrieved Components 11 | . . . 11 . . Parts Scanalyzed 1 | . . . . . 1 Part Schematics Acquired . | . . . . . . Parts Damaged . | . . . . . . Bothacking | -11 -10 -10 -8 -8 -6 ------------ Run | Yrd Mat Sub Rec Scr Fac Used RIF Installer . | . . . . . . Robots Hacked . | . . . . . . Non-combat . | . . . . . . Combat . | . . . . . . Robot Hacks Applied . | . . . . . . Relay Couplers Released . | . . . . . . Fabnet Peak Effective % . | . . . . . . Robots Rewired . | . . . . . . Allies Hacked . | . . . . . . Hacks Repelled . | . . . . . . Allies | -11 -10 -10 -8 -8 -6 -------- Run | Yrd Mat Sub Rec Scr Fac Total Allies . | . . . . . . Largest Group . | . . . . . . Highest-Rated Group . | . . . . . . Highest-Rated Ally . | . . . . . . Initial UFD Resources 23 | . . . . . 23 Total Orders . | . . . . . . Ally Attacks . | . . . . . . Total Damage . | . . . . . . Kills . | . . . . . . Allies Corrupted . | . . . . . . Allies Melted . | . . . . . . Intel | -11 -10 -10 -8 -8 -6 ------- Run | Yrd Mat Sub Rec Scr Fac Active Infowar (turns) 6251 | 52 105 2167 1121 2382 424 Sensors 338 | . . . . . 338 IFF 47 | . . . . . 47 Seismic 5827 | 52 105 2167 1121 2382 . ECM 39 | . . . . . 39 Robot Analysis Total 1 | . . . 1 . . Derelict Logs Recovered 7 | . . 2 . 5 . Drone Launches . | . . . . . . Drone Recoveries . | . . . . . . Exploration | -11 -10 -10 -8 -8 -6 ------------- Run | Yrd Mat Sub Rec Scr Fac Turns Passed 8999 | 138 105 2419 1144 4209 984 Spaces Moved 6591 | 62 65 1665 724 3390 685 Core 10 | 2 . . . . 8 Treads 1521 | 60 65 205 509 682 . Legs . | . . . . . . Wheels 4734 | . . 1460 215 2708 351 Hover 326 | . . . . . 326 Flight . | . . . . . . Fastest Speed 50 | 50 160 110 120 95 56 Average Speed 124 | 156 160 125 148 122 96 Slowest Speed 430 | 160 160 240 240 240 430 Overloaded Moves . | . . . . . . Propulsion Burnouts . | . . . . . . Robots Hopped . | . . . . . . Potential Cave-ins . | . . . . . . Cave-ins Triggered . | . . . . . . Exploration Rate (%) 50 | 4 14 79 94 93 20 Regions Visited 5 Branch Regions 3 Pre-discovered Areas 6 | . . 1 4 1 . Known Exits Taken 1 | . . 1 . . . Unknown Exits Taken 4 | 1 1 . 1 1 . Scrap Searched 17 | . . 6 . 11 . Spaces Dug 13 | . . . 7 . 6 Terrain Destroyed 28 | . . 5 9 . 14 Melee 10 | . . . 6 . 4 Projectile 16 | . . 5 3 . 8 AOE 2 | . . . . . 2 Terrain Rammed . | . . . . . . Walls Destroyed . | . . . . . . Machines Disabled . | . . . . . . Actions | -11 -10 -10 -8 -8 -6 --------- Run | Yrd Mat Sub Rec Scr Fac Total 7125 | 82 66 1892 768 3451 866 Wait 113 | . . 67 11 . 35 Move 6586 | 61 64 1664 723 3389 685 Hop . | . . . . . . Pick Up 62 | 5 1 28 3 19 6 Fast Attach 41 | 7 . 5 4 7 18 Attach 19 | . . 6 . 1 12 Detach 11 | . . 4 1 1 5 Swap 51 | . 1 28 6 7 9 Drop 73 | . . 27 6 27 13 Fire 126 | 9 . 63 4 . 50 Melee 41 | . . . 10 . 31 Ram . | . . . . . . Kick . | . . . . . . Crush . | . . . . . . Escape Stasis . | . . . . . . Rewire . | . . . . . . Trap 2 | . . . . . 2 Miscellaneous . | . . . . . . Route ------- -11/Scrapyard -10/Materials (discovered 2 exits: [*Min] / *Sub) -10/Subcaves (discovered 2 exits: [*Mat] / *Rec) -8/Recycling (discovered 2 exits: *Fac / *Scr) -8/Scraptown (discovered 2 exits: *Fac x2) -6/Factory History --------- Turn | Location | Event 7 | -11/Scrapyard | Discovered new exit (range 14) 139 | -11/Scrapyard | Entered Materials 143 | -10/Materials | Discovered new exit (range 16) 236 | -10/Materials | Discovered new exit (range 6) 244 | -10/Materials | Entered Subcaves 314 | -10/Subcaves | Build established: Mutant 667 | -10/Subcaves | Shifting Twisted Machinery released Piercing Trap 675 | -10/Subcaves | Shifting Twisted Machinery released Sub. Machine Gun 776 | -10/Subcaves | Learned 2 Materials zone layouts 789 | -10/Subcaves | Shifting Twisted Machinery released Sub. Monowheel 790 | -10/Subcaves | Shifting Twisted Machinery released Riot Gun 1421 | -10/Subcaves | Core integrity fell below 50% 1609 | -10/Subcaves | Learned location of Storage (-8) 1646 | -10/Subcaves | Discovered new exit (range 11) 1687 | -10/Subcaves | Identified exit to Recycling 1781 | -10/Subcaves | Build established: Scavenger-Mutant 2018 | -10/Subcaves | Discovered new exit (range 9) 2169 | -10/Subcaves | Visited 4L-MR0's lab 2183 | -10/Subcaves | Found Meta Core 2184 | -10/Subcaves | Attached Meta Core, gained temporary slots: Propulsion, Utility, Weapon 2235 | -10/Subcaves | Shifting Twisted Machinery released Sub. Laser 2238 | -10/Subcaves | Shifting Twisted Machinery released Shrapnel Trap 2465 | -10/Subcaves | Build established: Mutant 2663 | -10/Subcaves | Entered Recycling 3353 | -8/Recycling | Discovered new exit (range 16) 3768 | -8/Recycling | Scanned before Scraplab entrance 3791 | -8/Recycling | Entered Scraplab 3803 | -8/Recycling | Discovered new exit (range 2) 3807 | -8/Recycling | Entered Scraptown 4147 | -8/Scraptown | Scanned Subdweller tech in exchange for log data 4150 | -8/Scraptown | Learned Research emergency access door positions 4153 | -8/Scraptown | Learned location of Testing (-3) 4155 | -8/Scraptown | Learned Factory interactive machine intel 4158 | -8/Scraptown | Learned Research security intel 4179 | -8/Scraptown | Discovered new exit (range 7) 4344 | -8/Scraptown | Visited Awakened 4369 | -8/Scraptown | Visited Red Mages 4453 | -8/Scraptown | Visited Cyclists 4795 | -8/Scraptown | Visited Science Testing Area 4886 | -8/Scraptown | Visited Bundlers 4960 | -8/Scraptown | Visited Fellowship of the Rings 5228 | -8/Scraptown | Visited UFD Registry 5228 | -8/Scraptown | Registered with UFD as "Datashaft" 5328 | -8/Scraptown | Entered Cyclist Reading Room 5402 | -8/Scraptown | Visited LU-1G1's Boring Crew 5462 | -8/Scraptown | Visited Infowarlord's Domain 5494 | -8/Scraptown | Visited DA-N13 Charitable Foundation 5505 | -8/Scraptown | Found DCF Scrap (29 items) 5554 | -8/Scraptown | Delivered Scrap Shield to a Scientist 5667 | -8/Scraptown | Visited Curators Association 5714 | -8/Scraptown | Visited Scrapoid Pod Storage 5748 | -8/Scraptown | Visited Supply Room 5775 | -8/Scraptown | Visited Science Guys 5816 | -8/Scraptown | Visited Abandonware Association 5831 | -8/Scraptown | Learned abandonware demo "SHUTEYE.EXE" 5867 | -8/Scraptown | Visited Derelict Rescue Squad 5898 | -8/Scraptown | Visited Junk Cannon Lab 5906 | -8/Scraptown | Found Prototype Special Weapon 5906 | -8/Scraptown | Identified Junk Cannon 6046 | -8/Scraptown | Discovered new exit (range 5) 6926 | -8/Scraptown | Found Exp. Signal Interpreter 7009 | -8/Scraptown | Found DRS Beacon 8016 | -8/Scraptown | Entered Factory 8016 | -6/Factory | Evolved 8 slots: Power x1, Propulsion x3, Utility x3, Weapon x1 8017 | -6/Factory | Loaded intel: 53 interactive machine locations 8223 | -6/Factory | Garrison activated, responded to threat 8310 | -6/Factory | Build established: Skirmisher 8458 | -6/Factory | Lost 5 parts (2n1u2w) 8600 | -6/Factory | Spotted B-75 Beast 8663 | -6/Factory | Lost 6 parts (1p1n2u2w) 8706 | -6/Factory | Lost 3 parts (1p2w) 8765 | -6/Factory | Core integrity fell below 50% 8898 | -6/Factory | Core integrity fell below 20% 8899 | -6/Factory | Build established: Mutant 8937 | -6/Factory | Lost 4 parts (1p1n2u) 9000 | -6/Factory | Self-destructed Last Messages --------------- 08953_ R-10 Processor destroyed. 08953_ R-10 Processor collects Com. Wheel. 08954_ ALERT: Potential suspicious activity detected, Programmers report to Factory Zone 3K. 08954_ K-01 Serf collects debris. 08955_ Acquired 120 matter. 08957_ K-01 Serf collects debris. 08957_ R-10 Processor collects Lgt. Treads. 08959_ Acquired Coolant Injector. 08960_ R-10 Processor collects Imp. Heat Sink. 08961_ K-01 Serf collects debris. 08963_ R-10 Processor collects Mic. Nuclear Core. 08967_ K-01 Serf cleans the Power Conduit. 08971_ Acquired 12 matter. 08978_ Slug penetrates Pressure Siphon. 08981_ Slug penetrates Wall. 08991_ Penetrated by Slug. 08998_ Chainsword destroyed. 08998_ O-24 Administrator destroyed. 08998_ Imp. Light Armor Plating destroyed. Map ----- +----------------------------------------------------+ | ###### ## #????????????????????? | | #?# ## #????????????????????? | | "" #?# ## " "" #????????????????????? | | #?# ## "R"" #????????????????????? | | "" ### ## """ #??????????????????"?F | | ## #####################???????????""" | | "" ##T # """"""""""" #?????????????? | | "" ### # """ """"T"""" #??????????????? | | "" #?# # """ #??????????????? | | T" ### # """ ! #??????????????? | | "" # # # #??????????????? | | " ### # !!! #???????????"?"? | | #?# # !! #???????????"?"? | | ####?# # ! !! #??????????""G"" | | #???# ####+######+#######???????????????? | | #???# ## #?????????????????????? | | #???# ## #?????????????????????? | | ##### ## #?????????????????????? | | + % ## #????##???????????????? | | # ##+##### #####???????????? | | # """" """" """" # ! #?????????""" | | # """" """" """" # /%! #?????????""" | | # """" """" """" # % * #???????????? | | ## # #???????????? | | """" """" """" # #???????????? | | """" """" """" #@ #???????????? | | """" """" """" h #???????????? | | # #???????????? | | t # #???????????? | | # " " #???????????? | | # "Y" #???????????? | | ###########+##### # """ =#???????????? | | ???# |[# ##############???????????? | | ???# # #????????????????????????? | | ???# """""""!!# #????????????????????????? | | ???# """"""" + ^ ^ ?????????????????? | | ???# """"""" #^^ ^ # ???????????????? | | ???# """ "" [# # ???????????????? | | ???# # #? #####????????????????? | | ???# # % #??##????????????????????? | | ???# # #????????????????????????? | | ???# # #????????????????????????? | | ???# # #????????????????????????? | | ???# """T""" # #????????????????????????? | | ???###+########## #????????????????????????? | | ?????# ## #????# #????????????????????????? | | ????## ## ##???# #????????????????????????? | | ????# #???# #????????????????????????? | | ????# #???? ?????????????????????????? | | ????# #???? ????????????????????????????? | +----------------------------------------------------+ Best States ------------- Heat Dissipation 37 Coolant Potential 65 Energy Generation 29 Energy Capacity 380 Matter Stores 300 Matter Capacity 300 Sight Range 16 Robot Scan Range 15 Terrain Scan Density 10 ECM Strength 1 Armor Coverage 300 Core Shielding 30 Evasion (%) 57 Targeting Accuracy 6 Recoil Reduction 2 Offensive Hacking 10 Trap Extractor Capacity 6 Item Schematics ----------------- Imp. Reaction Control System | -8/Recycling | Hacked Imp. Actuator Array | -8/Recycling | Hacked Robot Schematics ------------------ None Fabricated ------------ Nothing Repaired ---------- Nothing Studied --------- None Alien Tech Used ----------------- None Achievements -------------- Mistaken Identity Challenges ------------ None Game ------ Seed FlyingSchematicAutohacker Manual? 0 Play Time 01:52:20 Cumulative 357.7 hours Start 2026.04.23 @ 00:29:01 End 2026.04.23 @ 22:48:04 Sessions 3 Manual Loads 0 Difficulty Rogue Special Mode None Game No. 101 Rogue 101 Adventurer 0 Explorer 0 Win Type - Total 2 Types 2/0/0/0/0/0/0/0/0/0 Lore% 66 Gallery% 60 Achievement% 50 Wizard Run 0 Options --------- Layout 0 ASCII 1 Keyboard 1 Movement Arrows Keybinds 0 Fullscreen 1 Font 24/Smallcaps Map View 76x50 Zoom Use 0% Tactical HUD 1 Map Filters NONE Filters NONE Steam 1 RUN: ca97ecaa-a37b-4043-be7a-80fc029e27fa